bitfinex/quotes_SOLUSD_20250307
["timestamp","ask_amount","ask_price","bid_price","bid_amount"]
[1741363978673,54.27686509,143.86,143.77,312.0]
[1741363978877,20.0,143.9,143.79,54.27686509]
[1741363978878,54.27686509,143.85,143.79,54.27686509]
[1741363979060,54.27686509,143.86,143.79,54.27686509]
[1741363979258,54.27686509,143.83,143.76,54.27686509]
[1741363979498,20.0,143.84,143.75,54.27686509]
[1741363979658,10.92,143.87,143.72,0.28432314]
[1741363979863,65.19686509,143.87,143.8,54.27686509]
[1741363980164,54.27686509,143.86,143.72,3.04311357]
[1741363980362,13.7003,143.87,143.77,54.27686509]
[1741363980570,18.64964886,143.93,143.77,18.933972]
[1741363980571,54.27686509,143.86,143.77,18.933972]
[1741363980871,2.7791,143.93,143.84,54.27686509]
[1741363981069,54.27686509,143.93,143.81,0.28432314]
[1741363981279,161.26,143.94,143.76,30.88]
[1741363981280,150.38,143.94,143.89,54.27686509]
[1741363981599,196.32624522,144.02,143.9,0.28432314]
[1741363981890,150.4,144.02,143.92,0.28432314]
[1741363982190,10.86,144.06,143.94,18.933972]
[1741363982392,152.8274,144.1,143.98,330.933972]
[1741363982564,150.46,144.1,143.98,330.933972]
[1741363982759,54.27686509,144.11,144.05,54.27686509]
[1741363982980,54.27686509,144.16,144.09,54.27686509]
[1741363983175,54.27686509,144.15,144.09,54.27686509]
[1741363983466,2.8053,144.13,144.04,10.84]
[1741363983668,0.03,144.13,144.05,0.28432314]
[1741363983883,0.03,144.13,144.04,10.84]
[1741363984082,2.8052,144.13,143.98,30.82]
[1741363984282,2.8052,144.13,144.0,18.933972]
[1741363984483,9.7433,144.13,143.99,6.9449]
[1741363984794,54.27686509,144.08,144.02,54.27686509]
[1741363985086,54.27686509,144.09,144.02,54.27686509]
[1741363985290,22.8052,144.13,144.04,54.27686509]
[1741363985584,22.8052,144.13,144.02,54.27686509]
[1741363985798,0.03,144.13,144.0,18.933972]
[1741363985981,0.03,144.13,144.03,18.933972]
[1741363986182,0.03,144.13,143.99,24.3072]
[1741363986390,20.0,144.11,143.99,6.9449]
[1741363986590,0.03,144.13,143.99,6.9449]
[1741363986892,54.27686509,144.08,144.01,54.27686509]
[1741363987060,0.03,144.13,144.03,54.27686509]
[1741363987395,0.03,144.13,144.04,21.04110416]
[1741363987699,0.03,144.13,144.09,2.0]
[1741363987904,0.03,144.13,144.05,72.66]
[1741363987905,0.03,144.28,144.13,2.0]
[1741363988057,2.8024,144.28,144.15,0.28432314]
[1741363988262,9.7333,144.28,144.15,7.22122314]
[1741363988499,54.27686509,144.25,144.18,54.27686509]
[1741363988683,54.27686509,144.22,144.16,54.27686509]
[1741363988883,54.27686509,144.24,144.17,54.27686509]
[1741363989102,9.7333,144.28,144.21,54.27686509]
[1741363989103,54.27686509,144.27,144.21,54.27686509]
[1741363989302,0.03,144.28,144.21,54.27686509]
[1741363989612,0.03,144.28,144.2,18.933972]
[1741363989785,0.03,144.28,144.22,0.28432314]
[1741363990398,0.03,144.28,144.25,54.27686509]
[1741363990600,0.03,144.28,144.26,312.0]
[1741363990790,0.03,144.28,144.25,54.27686509]
[1741363990990,0.03,144.28,144.27,54.56118823]
[1741363991783,0.03,144.28,144.27,73.21083709]
[1741363991985,0.78850865,144.35,144.28,18.933972]
[1741363992285,0.03,144.44,144.34,61.48918823]
[1741363992486,0.03,144.44,144.38,0.28432314]
[1741363992795,0.03,144.44,144.41,20.0]
[1741363993186,0.03,144.44,144.42,0.28432314]
[1741363993492,0.03,144.44,144.43,52.4624443]
[1741363993706,0.03,144.44,144.43,364.4624443]
[1741363994009,0.03,144.44,144.43,312.0]
[1741363994187,0.03,144.44,144.39,10.6]
[1741363994685,0.03,144.44,144.38,2.77638]
[1741363995009,0.03,144.44,144.34,69.9704443]
[1741363995243,0.03,144.44,144.34,30.268106]
[1741363995412,0.03,144.44,144.34,10.58]
[1741363995580,0.03,144.44,144.32,10.56]
[1741363995782,0.03,144.44,144.37,52.4624443]
[1741363996082,0.03,144.44,144.39,52.4624443]
[1741363996315,0.03,144.44,144.34,52.4624443]
[1741363996514,0.03,144.44,144.32,10.56]
[1741363997023,0.03,144.44,144.33,0.28432314]
[1741363997227,0.03,144.44,144.37,0.28432314]
[1741363997514,0.03,144.44,144.43,52.4624443]
[1741363997716,0.03,144.44,144.43,52.74676744]
[1741363997890,0.03,144.44,144.43,53.78485393]
[1741363998088,0.03,144.44,144.43,72.43450279]
[1741363998308,0.03,144.48,144.45,6.9228]
[1741363998630,0.03,144.48,144.47,52.4624443]
[1741363998827,0.03,144.48,144.47,105.20921174]
[1741363998997,52.4924443,144.59,144.47,134.3388606]
[1741363999200,0.03,144.59,144.56,52.4624443]
[1741363999793,0.03,144.59,144.58,52.4624443]
[1741364000496,0.03,144.59,144.58,59.3789443]
[1741364000715,0.03,144.59,144.58,371.3789443]
[1741364001015,0.03,144.59,144.58,371.66326744]
[1741364001311,0.03,144.59,144.58,59.66326744]
[1741364001516,0.03,144.59,144.58,78.3129163]
[1741364001706,0.03,144.63,144.62,52.4624443]
[1741364001909,0.03,144.63,144.52,10.4]
[1741364002094,20.0,144.62,144.48,52.4624443]
[1741364002300,52.4624443,144.58,144.51,52.4624443]
[1741364002505,52.4624443,144.58,144.52,52.4624443]
[1741364002704,22.7658,144.62,144.48,7.95901858]
[1741364002917,55.2580443,144.63,144.57,52.4624443]
[1741364003213,55.2580443,144.63,144.49,18.933972]
[1741364003214,2.7956,144.63,144.58,52.4624443]
[1741364003421,0.03,144.63,144.59,52.4624443]
[1741364003600,0.03,144.63,144.61,52.4624443]
[1741364003799,0.03,144.63,144.62,52.4624443]
[1741364004002,0.03,144.63,144.56,1.03670464]
[1741364004211,0.03,144.63,144.62,52.4624443]
[1741364004520,59.1099443,144.74,144.64,0.28432314]
[1741364004704,52.4624443,144.79,144.71,52.4624443]
[1741364004903,59.3671443,144.83,144.71,52.4624443]
[1741364005225,52.4624443,144.79,144.71,52.4624443]
[1741364005520,52.4624443,144.77,144.71,52.4624443]
[1741364005820,52.4624443,144.77,144.64,1.03638113]
[1741364005821,52.4624443,144.76,144.7,52.4624443]
[1741364005992,156.8255,144.82,144.68,52.4624443]
[1741364005993,52.4624443,144.75,144.68,52.4624443]
[1741364006193,52.4624443,144.71,144.63,6.9141]
[1741364006518,52.4624443,144.71,144.65,52.4624443]
[1741364006824,52.4624443,144.71,144.64,52.4624443]
[1741364006995,10.34,144.79,144.62,17.2546]
[1741364006996,9.69e-05,144.72,144.69,20.0]
[1741364007195,9.69e-05,144.72,144.7,10.38]
[1741364007399,18.64964886,144.86,144.71,0.28432314]
[1741364007746,149.82,144.91,144.71,0.28432314]
[1741364007747,2.6135,144.84,144.75,312.0]
[1741364008019,52.4624443,144.89,144.82,52.4624443]
[1741364008210,202.2824443,144.91,144.85,52.4624443]
[1741364008518,202.2824443,144.91,144.86,52.4624443]
[1741364008519,149.82,144.91,144.86,52.4624443]
[1741364008734,149.82,144.91,144.85,52.4624443]
[1741364008912,149.82,144.91,144.87,52.4624443]
[1741364009110,149.82,144.91,144.83,52.4624443]
[1741364009111,6.085,145.0,144.86,10.34]
[1741364009320,52.4624443,144.96,144.9,52.4624443]
[1741364009498,6.085,145.0,144.86,10.34]
[1741364009499,52.4624443,144.98,144.92,52.4624443]
[1741364009699,52.4624443,145.01,144.94,52.4624443]
[1741364009898,4.4295969,145.02,144.97,52.4624443]
[1741364009899,1.8707969,145.02,144.97,52.4624443]
[1741364010123,1.8707969,145.02,144.93,10.32]
[1741364010327,1.8707969,145.02,144.88,21.68454933]
[1741364010328,52.4624443,145.0,144.91,20.0]
[1741364010511,54.3332412,145.02,144.96,52.4624443]
[1741364010706,4.6289969,145.02,144.93,52.4624443]
[1741364010907,52.4624443,144.98,144.92,52.4624443]
[1741364011419,1.8707969,145.02,144.97,52.4624443]
[1741364011623,1.8707969,145.02,144.98,52.4624443]
[1741364011831,1.8707969,145.02,144.97,52.4624443]
[1741364012121,52.4624443,145.01,144.95,52.4624443]
[1741364012325,52.4624443,144.99,144.93,52.4624443]
[1741364012502,52.4624443,144.97,144.91,62.7424443]
[1741364012704,52.4624443,144.96,144.91,10.28]
[1741364013021,52.4624443,144.94,144.88,52.4624443]
[1741364013227,52.4624443,144.94,144.85,10.26]
[1741364013401,52.4624443,144.94,144.78,1.03510886]
[1741364013402,52.4624443,144.9,144.84,52.4624443]
[1741364013599,52.4624443,144.89,144.83,52.4624443]
[1741364014013,52.4624443,144.94,144.87,52.4624443]
[1741364014218,20.0,144.95,144.84,18.64964886]
[1741364014523,2.7584,145.01,144.9,312.0]
[1741364014701,6.8938,145.06,144.91,19.96861632]
[1741364014897,20.0,145.03,144.91,1.03464432]
[1741364015126,2.7578,145.05,144.92,0.28432314]
[1741364015444,2.496,145.1,145.01,52.4624443]
[1741364015607,55.2189443,145.12,145.01,71.3964163]
[1741364015929,2.7565,145.12,145.01,72.43033089]
[1741364016244,2.7563,145.12,145.01,72.43033089]
[1741364016534,158.5412,145.18,145.04,20.0]
[1741364016702,2.6462,145.18,145.08,71.3964163]
[1741364016902,0.03,145.18,145.08,134.1188606]
[1741364017104,0.03,145.18,145.08,135.15204876]
[1741364017305,0.03,145.18,145.08,81.6564163]
[1741364017528,0.03,145.18,145.13,18.933972]
[1741364017829,0.03,145.18,145.12,20.0]
[1741364017830,0.03,145.18,145.17,71.3964163]
[1741364018022,0.03,145.23,145.21,20.0]
[1741364018328,0.03,145.23,145.22,53.77909156]
[1741364018511,0.03,145.23,145.22,72.42891258]
[1741364018706,0.03,145.23,145.22,52.4624443]
[1741364018929,0.03,145.23,145.22,71.3964163]
[1741364020240,1.8707969,145.31,145.26,20.0]
[1741364020427,1.8707969,145.31,145.29,52.4624443]
[1741364020922,1.8707969,145.31,145.27,62.7024443]
[1741364021131,1.8707969,145.31,145.3,71.3964163]
[1741364021310,1.5865969,145.31,145.3,72.42788482]
[1741364021629,0.03,145.38,145.37,20.0]
[1741364021925,0.77708099,145.44,145.41,20.0]
[1741364022233,0.77708099,145.44,145.43,123.83101678]
[1741364022626,151.1907969,145.6,145.5,20.0]
[1741364022802,2.7475,145.59,145.54,52.4624443]
[1741364023238,63.9487412,145.6,145.47,1.03027987]
[1741364023539,52.4624443,145.53,145.47,52.4624443]
[1741364023711,52.4624443,145.54,145.48,52.4624443]
[1741364023914,4.6181969,145.6,145.5,18.79181043]
[1741364024242,1.8707969,145.6,145.52,0.28432314]
[1741364024410,4.6179969,145.6,145.52,0.28432314]
[1741364024746,4.6179969,145.6,145.59,0.28432314]
[1741364024747,1.8707969,145.6,145.59,0.28432314]
[1741364024944,1.8707969,145.6,145.59,135.14828963]
[1741364025115,0.03,145.63,145.62,20.0]
[1741364025317,0.03,145.63,145.62,144.88789818]
[1741364025613,54.9780443,145.92,145.76,0.28432314]
[1741364025815,2.5156,145.92,145.84,20.0]
[1741364026113,2.5156,145.92,145.88,89.66143182]
[1741364026312,4.9846043,145.92,145.9,51.93738296]
[1741364026527,7.7258043,145.92,145.86,0.28432314]
[1741364026732,7.7258043,145.92,145.86,52.74719307]
[1741364026965,2.4690043,145.92,145.89,20.0]
[1741364027167,2.4690043,145.92,145.9,18.64964886]
[1741364027337,2.4690043,145.92,145.9,10.38]
[1741364027663,10.4,146.0,145.8,18.64964886]
[1741364027832,18.933972,145.99,145.8,2.0]
[1741364028033,52.74719307,145.84,145.8,2.0]
[1741364028240,52.74719307,146.08,145.93,2.0]
[1741364028453,148.94,146.13,145.94,2.0]
[1741364028657,16.4337,146.04,145.97,2.0]
[1741364028857,27.1537,146.04,145.86,2.0]
[1741364029028,52.74719307,145.88,145.8,12.76]
[1741364029227,201.68719307,145.92,145.86,54.74719307]
[1741364029465,16.4337,146.04,145.86,54.74719307]
[1741364029466,20.0,145.91,145.88,52.74719307]
[1741364029631,20.0,145.9,145.81,2.0]
[1741364029829,0.28432314,145.88,145.78,2.0]
[1741364030064,20.0,145.86,145.79,2.0]
[1741364030302,15.067661,145.89,145.75,12.8]
[1741364030463,148.78,145.85,145.72,2.0]
[1741364030755,148.78,145.84,145.66,2.0]
[1741364031067,52.74719307,145.79,145.72,52.74719307]
[1741364031243,29.843,145.86,145.74,54.74719307]
[1741364031447,2.0567,145.86,145.77,2.0]
[1741364033944,6.0171,145.79,145.57,2.0]
[1741364034151,52.74719307,145.64,145.57,2.0]
[1741364034442,52.74719307,145.69,145.63,0.28432314]
[1741364034642,52.74719307,145.7,145.64,71.39684193]
[1741364034845,10.2901,145.77,145.58,2.0]
[1741364035063,10.72,145.76,145.62,2.0]
[1741364035370,20.0,145.73,145.67,2.0]
[1741364035571,20.0,145.73,145.63,2.28432314]
[1741364035779,0.28432314,145.78,145.64,18.64964886]
[1741364036079,52.74719307,145.71,145.66,18.64964886]
[1741364036357,52.74719307,145.69,145.65,18.64964886]
[1741364036539,2.0594,145.67,145.65,18.64964886]
[1741364036737,52.74719307,145.66,145.6,18.64964886]
[1741364036974,10.2901,145.77,145.65,2.0]
[1741364037263,17.4943,145.76,145.66,18.64964886]
[1741364037566,72.43391084,145.8,145.66,2.0]
[1741364037788,20.0,145.76,145.66,2.0]
[1741364038065,52.74719307,145.69,145.65,0.28432314]
[1741364038254,52.74719307,145.67,145.64,18.64964886]
[1741364038455,72.74719307,145.76,145.65,2.28432314]
[1741364038456,52.74719307,145.7,145.65,2.28432314]
[1741364038759,52.74719307,145.72,145.66,2.0]
[1741364039056,10.2908,145.76,145.65,18.933972]
[1741364039057,20.0,145.73,145.65,18.933972]
[1741364039262,20.0,145.73,145.63,10.7]
[1741364039457,20.0,145.65,145.51,2.0]
[1741364039662,20.0,145.63,145.57,2.0]
[1741364039846,72.74719307,145.63,145.57,2.0]
[1741364040050,20.0,145.63,145.58,54.74719307]
[1741364040241,52.74719307,145.66,145.6,71.39684193]
[1741364040444,20.0,145.63,145.5,2.0]
[1741364040636,52.74719307,145.53,145.46,2.0]
[1741364040860,2.0607,145.58,145.54,18.933972]
[1741364041053,2.0607,145.58,145.52,2.0]
[1741364041239,7.2125,145.58,145.5,10.96]
[1741364041439,18.79181043,145.72,145.56,2.0]
[1741364041642,148.7,145.74,145.6,18.64964886]
[1741364041975,20.0,145.71,145.59,18.933972]
[1741364042185,52.74719307,145.6,145.52,52.88935464]
[1741364042478,52.74719307,145.53,145.48,2.0]
[1741364042638,20.0,145.54,145.4,2.0]
[1741364042845,20.0,145.46,145.33,2.0]
[1741364043060,20.28432314,145.44,145.3,2.0]
[1741364043259,0.28432314,145.44,145.29,3.706]
[1741364043469,0.28432314,145.44,145.31,2.0]
[1741364043470,11.06,145.43,145.31,2.0]
[1741364043678,52.74719307,145.32,145.29,3.706]
[1741364043841,52.74719307,145.3,145.29,3.706]
[1741364044573,159.76,145.36,145.29,14.72749359]
[1741364044871,0.6878,145.39,145.29,3.706]
[1741364045051,0.6878,145.39,145.3,0.14216157]
[1741364045245,0.28432314,145.41,145.31,18.64964886]
[1741364045450,20.0,145.42,145.31,0.14216157]
[1741364045765,52.74719307,145.41,145.36,18.64964886]
[1741364045982,52.74719307,145.43,145.38,20.0]
[1741364046189,0.6872,145.51,145.4,71.39684193]
[1741364046484,0.28432314,145.47,145.36,11.04]
[1741364046661,20.0,145.44,145.32,0.28432314]
[1741364046844,0.6874,145.46,145.35,18.933972]
[1741364047044,19.33674886,145.52,145.38,18.64964886]
[1741364047247,19.33674886,145.52,145.36,2.0]
[1741364047466,0.28432314,145.47,145.31,2.033]
[1741364047646,52.74719307,145.35,145.31,0.033]
[1741364047858,52.74719307,145.44,145.31,0.033]
[1741364048064,52.74719307,145.36,145.31,0.033]
[1741364048261,52.74719307,145.32,145.31,0.033]
[1741364048586,20.28432314,145.3,145.29,3.706]
[1741364048753,18.933972,145.29,145.16,1.8280678]
[1741364048945,20.0,145.26,145.16,1.8280678]
[1741364049165,0.28432314,145.27,145.16,1.8280678]
[1741364049475,0.28432314,145.23,145.16,1.8280678]
[1741364049786,51.916907,145.2,145.16,3.8280678]
[1741364049987,51.916907,145.25,145.19,53.916907]
[1741364050186,0.28432314,145.24,145.16,1.8280678]
[1741364050564,20.0,145.29,145.2,2.0]
[1741364050766,51.916907,145.32,145.22,2.0]
[1741364051065,18.64964886,145.35,145.23,18.64964886]
[1741364051279,51.916907,145.25,145.2,20.64964886]
[1741364051478,20.0,145.32,145.23,18.64964886]
[1741364051796,51.916907,145.32,145.27,2.0]
[1741364052097,51.916907,145.39,145.31,18.64964886]
[1741364052278,0.6875,145.45,145.31,18.64964886]
[1741364052465,40.95,145.43,145.26,2.0]
[1741364052667,20.0,145.34,145.25,29.72964886]
[1741364052971,0.6876,145.42,145.3,18.64964886]
[1741364053301,51.916907,145.31,145.23,2.0]
[1741364053478,51.916907,145.27,145.21,2.0]
[1741364053784,18.64964886,145.38,145.25,18.64964886]
[1741364053785,20.0,145.33,145.25,18.64964886]
[1741364053999,20.0,145.33,145.23,0.28432314]
[1741364054000,0.28432314,145.31,145.2,11.08]
[1741364054287,20.0,145.24,145.16,1.8280678]
[1741364054488,0.28432314,145.23,145.16,1.8280678]
[1741364054665,0.28432314,145.19,145.16,1.8280678]
[1741364054870,20.0,145.2,145.16,1.8280678]
[1741364055198,71.916907,145.17,145.16,1.8280678]
[1741364055367,142.767786,145.17,145.16,1.8280678]
[1741364055560,72.20123014,145.17,145.16,1.8280678]
[1741364055764,90.850879,145.17,145.16,1.8280678]
[1741364055964,20.0,145.13,145.11,0.033]
[1741364056172,38.933972,145.12,145.11,0.033]
[1741364056380,20.28432314,145.12,145.11,0.033]
[1741364056887,20.0,145.14,145.05,20.28264886]
[1741364057086,53.37625562,145.1,145.05,20.28264886]
[1741364057386,53.37625562,145.11,145.05,73.65890448]
[1741364057587,53.37625562,145.14,145.09,2.0]
[1741364057893,53.37625562,145.16,145.1,2.0]
[1741364058183,53.37625562,145.17,145.13,2.0]
[1741364058389,160.8084,145.26,145.13,2.0]
[1741364058390,53.37625562,145.2,145.14,2.0]
[1741364058569,53.37625562,145.22,145.15,55.37625562]
[1741364058772,53.37625562,145.22,145.17,2.0]
[1741364058974,53.37625562,145.23,145.18,2.0]
[1741364059189,53.37625562,145.23,145.17,20.64964886]
[1741364059374,20.28432314,145.28,145.17,20.64964886]
[1741364059577,0.28432314,145.27,145.19,9.86382264]
[1741364059774,20.28432314,145.2,145.19,9.86382264]
[1741364059990,20.28432314,145.2,145.11,18.68264886]
[1741364059991,0.28432314,145.19,145.11,0.033]
[1741364060329,53.66057876,145.12,145.11,0.033]
[1741364060467,72.31022762,145.12,145.11,0.033]
[1741364060787,0.14216157,145.07,144.95,2.0]
[1741364060994,20.0,145.08,145.0,2.0]
[1741364061191,20.0,145.08,144.96,2.0]
[1741364061192,0.28432314,145.07,144.96,2.0]
[1741364061405,53.37625562,144.99,144.95,2.0]
[1741364061571,53.37625562,144.99,144.94,8.9323]
[1741364061771,53.37625562,145.0,144.96,2.0]
[1741364062072,53.37625562,144.99,144.94,0.033]
[1741364062302,0.28432314,145.0,144.94,0.033]
[1741364062670,20.0,145.01,144.94,0.033]
[1741364062900,0.28432314,145.0,144.94,0.033]
[1741364063102,20.0,145.01,144.94,0.033]
[1741364063308,20.28432314,145.05,144.95,2.0]
[1741364063467,53.37625562,145.01,144.98,2.0]
[1741364063669,20.0,145.05,144.98,2.0]
[1741364063883,160.02,145.09,144.98,2.0]
[1741364063884,53.37625562,145.04,145.0,20.64964886]
[1741364064098,53.37625562,145.06,145.02,20.64964886]
[1741364064289,53.37625562,145.07,145.02,20.64964886]
[1741364064499,149.16,145.18,145.07,18.64964886]
[1741364064798,53.37625562,145.13,145.08,2.0]
[1741364065001,53.37625562,145.11,145.07,20.64964886]
[1741364065184,53.37625562,145.12,145.07,20.64964886]
[1741364065380,53.37625562,145.14,145.09,20.64964886]
[1741364065578,149.16,145.18,145.05,2.0]
[1741364065579,53.37625562,145.1,145.05,2.0]
[1741364065902,53.37625562,145.11,145.08,2.0]
[1741364066085,20.28432314,145.14,145.05,18.64964886]
[1741364066286,20.28432314,145.14,145.02,2.0]
[1741364066496,20.0,145.1,144.99,5.0261]
[1741364066687,20.0,145.06,144.96,6.8984]
[1741364066887,20.0,145.06,145.02,2.0]
[1741364067201,53.37625562,145.07,145.01,55.37625562]
[1741364067403,53.37625562,145.09,145.06,2.0]
[1741364067611,53.37625562,145.11,145.07,20.64964886]
[1741364067908,149.8488,145.18,145.08,2.28432314]
[1741364068083,53.37625562,145.13,145.08,2.28432314]
[1741364068408,53.37625562,145.13,145.1,18.64964886]
[1741364068899,53.37625562,145.12,145.09,2.0]
[1741364069100,53.37625562,145.1,145.06,2.0]
[1741364069291,53.37625562,145.09,145.05,20.03842314]
[1741364069489,53.37625562,145.06,145.0,2.0]
[1741364069682,20.0,145.05,144.95,2.0]
[1741364069877,0.28432314,145.04,144.94,0.033]
[1741364070103,0.28432314,145.01,144.94,0.033]
[1741364070289,20.0,145.02,144.94,0.033]
[1741364070823,53.37625562,144.96,144.94,0.033]
[1741364071126,53.37625562,144.97,144.94,0.033]
[1741364071700,53.37625562,144.95,144.94,0.033]
[1741364071900,53.37625562,144.96,144.94,0.033]
[1741364072408,53.37625562,144.95,144.94,0.033]
[1741364072628,0.28432314,145.02,144.94,0.033]
[1741364072907,53.37625562,144.95,144.94,0.033]
[1741364073605,53.37625562,144.95,144.87,1.8610678]
[1741364073606,20.0,144.92,144.87,1.8610678]
[1741364073807,53.37625562,144.88,144.87,1.8610678]
[1741364074195,18.6657,144.85,144.8,0.033]
[1741364074399,51.70505562,144.81,144.8,0.033]
[1741364074786,21.92442314,144.9,144.8,0.033]
[1741364074986,53.37625562,144.81,144.8,0.033]
[1741364075706,53.37625562,144.81,144.8,18.68264886]
[1741364076012,0.6901,144.9,144.82,18.64964886]
[1741364076385,53.37625562,144.83,144.8,0.033]
[1741364076715,53.37625562,144.81,144.8,0.033]
[1741364077396,3.4502,144.92,144.8,0.033]
[1741364077397,149.34,144.84,144.8,0.033]
[1741364077709,53.37625562,144.81,144.8,0.033]
[1741364078089,73.37625562,144.81,144.8,0.033]
[1741364078510,73.37625562,144.81,144.64,6.3516]
[1741364078511,30.7,144.81,144.7,2.0]
[1741364078809,0.6906,144.8,144.72,18.933972]
[1741364079010,30.7,144.81,144.75,18.933972]
[1741364079192,33.1169,144.81,144.71,2.0]
[1741364079390,52.3002106,144.77,144.75,18.933972]
[1741364079594,52.3002106,144.78,144.75,18.64964886]
[1741364079896,52.3002106,144.78,144.76,20.933972]
[1741364080110,52.3002106,144.79,144.76,20.933972]
[1741364080306,52.3002106,144.78,144.77,2.0]
[1741364080497,52.3002106,144.78,144.76,18.64964886]
[1741364080698,149.34,144.84,144.75,0.28432314]
[1741364080699,52.3002106,144.8,144.77,2.28432314]
[1741364081030,52.3002106,144.78,144.74,20.64964886]
[1741364081217,20.0,144.8,144.76,2.0]
[1741364081521,52.3002106,144.78,144.77,2.0]
[1741364081822,52.3002106,144.8,144.79,2.0]
[1741364082029,52.3002106,144.81,144.77,0.28432314]
[1741364082192,20.0,144.8,144.77,18.64964886]
[1741364082388,149.34,144.84,144.79,2.0]
[1741364082613,52.3002106,144.83,144.8,2.28432314]
[1741364082838,52.3002106,144.82,144.8,2.28432314]
[1741364083009,52.3002106,144.81,144.77,20.64964886]
[1741364083326,52.3002106,144.78,144.76,0.28432314]
[1741364083508,52.3002106,144.77,144.76,20.64964886]
[1741364083722,52.3002106,144.79,144.77,20.933972]
[1741364083893,149.34,144.84,144.81,2.0]
[1741364084100,52.3002106,144.84,144.82,0.6447]
[1741364084296,149.48,144.92,144.84,0.6447]
[1741364084530,1.3553,145.02,144.86,0.6447]
[1741364084531,10.56,144.99,144.86,0.6447]
[1741364084823,52.3002106,144.87,144.86,0.6447]
[1741364085026,52.3002106,144.89,144.86,0.78686157]
[1741364085202,52.3002106,144.87,144.85,0.6447]
[1741364085409,52.3002106,144.97,144.92,0.6447]
[1741364085612,52.3002106,144.93,144.88,0.6447]
[1741364085814,20.0,144.94,144.84,0.14216157]
[1741364086015,52.3002106,144.85,144.81,0.6447]
[1741364086214,52.3002106,144.9,144.88,19.29434886]
[1741364086524,52.3002106,144.91,144.9,19.29434886]
[1741364086892,52.3002106,144.91,144.86,18.64964886]
[1741364087096,62.8402106,144.97,144.85,0.92902314]
[1741364087097,20.0,144.88,144.87,0.6447]
[1741364087293,20.0,144.88,144.87,0.92902314]
[1741364087609,20.0,144.94,144.81,0.6447]
[1741364087915,52.3002106,144.82,144.81,19.29434886]
[1741364088095,52.3002106,144.86,144.85,0.6447]
[1741364088298,52.3002106,144.97,144.9,0.6447]
[1741364088517,160.0,145.01,144.91,0.6447]
[1741364088817,149.48,145.01,144.9,0.6447]
[1741364088994,52.3002106,144.93,144.92,0.6447]
[1741364089194,52.3002106,144.96,144.94,18.64964886]
[1741364089430,52.3002106,144.98,144.95,0.92902314]
[1741364089626,52.3002106,144.96,144.92,18.933972]
[1741364089798,20.0,145.01,144.91,0.28432314]
[1741364090002,20.0,144.97,144.87,0.6447]
[1741364090345,10.48,145.0,144.89,0.92902314]
[1741364090346,52.3002106,144.9,144.89,0.92902314]
[1741364090814,52.3002106,144.9,144.89,19.29434886]
[1741364091019,52.3002106,144.92,144.91,19.330772]
[1741364091425,52.3002106,144.92,144.91,18.865672]
[1741364091599,52.3002106,144.92,144.89,0.6447]
[1741364091795,159.92,145.09,144.98,0.6447]
[1741364092015,52.3002106,145.0,144.99,0.6447]
[1741364092306,52.3002106,145.03,145.01,0.6447]
[1741364092523,52.3002106,145.02,144.98,0.6447]
[1741364092712,0.6897,144.98,144.96,0.6447]
[1741364093027,52.3002106,144.97,144.96,0.6447]
[1741364093598,54.0238106,145.04,144.98,18.64964886]
[1741364093832,52.3002106,145.02,145.0,18.5848193]
[1741364094019,52.3002106,145.03,144.99,0.28432314]
[1741364094222,52.3002106,145.06,144.99,52.58453374]
[1741364094541,0.6891,145.1,144.99,0.28432314]
[1741364094731,54.0530106,145.11,145.02,0.28432314]
[1741364094732,52.3002106,145.08,145.02,0.28432314]
[1741364094935,0.6891,145.1,145.02,0.28432314]
[1741364095100,52.3002106,145.04,145.02,0.28432314]
[1741364095802,20.0,145.08,145.02,0.28432314]
[1741364096017,52.3002106,145.05,145.02,0.28432314]